bitfinex-derivatives/quotes_SOLF0:USTF0_20250626
["timestamp","ask_amount","ask_price","bid_price","bid_amount"]
[1750933248082,6.9376,144.08,144.03,2.21926694]
[1750933248280,2.21926694,144.07,144.03,2.21926694]
[1750933249584,2.21926694,144.07,144.06,6.9383]
[1750933249879,9.15686694,144.08,144.06,6.9383]
[1750933251783,2.21926694,144.07,144.06,6.9383]
[1750933252579,2.21926694,144.07,144.02,4.7191]
[1750933252783,2.21926694,144.05,144.02,4.7191]
[1750933253187,2.21926694,144.05,144.03,6.9399]
[1750933253686,2.21984718,144.04,144.02,6.94]
[1750933254286,2.21984718,144.03,144.02,6.94]
[1750933254482,2.22027263,144.04,144.03,6.9399]
[1750933256289,10.40799258,144.05,144.03,6.9399]
[1750933256787,6.9396,144.04,143.98,4.6389]
[1750933257182,3.46909258,144.05,143.98,4.6389]
[1750933257382,6.9399,144.03,144.01,6.9406]
[1750933258979,6.9404,144.02,143.98,4.6389]
[1750933259390,42.0804,144.02,144.0,6.941]
[1750933259591,35.14,144.02,143.98,4.6389]
[1750933261593,35.14,144.05,143.98,8.10799258]
[1750933261793,35.14,144.05,143.99,2.2777]
[1750933262294,35.14,144.05,144.03,6.9395]
[1750933263093,10.40779258,144.06,144.03,6.9395]
[1750933263291,35.14,144.05,143.99,2.2777]
[1750933264299,35.14,144.05,144.03,6.9396]
[1750933264797,35.14,144.05,143.99,2.2777]
[1750933265297,35.14,144.05,144.03,6.9394]
[1750933266700,10.40779258,144.06,144.03,6.9394]
[1750933267002,35.14,144.05,144.03,6.9394]
[1750933267600,10.40779258,144.06,144.03,6.9394]
[1750933267799,35.14,144.05,144.03,6.9394]
[1750933268404,10.40779258,144.06,143.99,2.2777]
[1750933268595,35.14,144.05,143.99,2.2777]
[1750933269607,35.14,144.05,144.04,6.9394]
[1750933270306,35.14,144.08,144.02,3.46909258]
[1750933270706,35.14,144.08,144.06,6.9382]
[1750933271108,35.14,144.08,144.02,3.46909258]
[1750933271307,35.14,144.08,144.07,6.9379]
[1750933271609,35.14,144.08,144.02,3.46909258]
[1750933272309,35.14,144.08,144.06,6.9381]
[1750933275309,35.14,144.08,144.03,2.4645]
[1750933276509,35.14,144.08,144.06,6.9381]
[1750933276710,10.40629258,144.09,144.06,6.9381]
[1750933276909,45.54629258,144.09,144.06,6.9381]
[1750933277209,6.9375,144.08,144.06,6.9381]
[1750933277908,45.54629258,144.09,144.06,6.9381]
[1750933278209,2.21869503,144.08,144.06,6.9381]
[1750933281513,2.21869503,144.08,144.07,6.9379]
[1750933287820,2.21869503,144.08,144.03,2.4645]
[1750933288121,2.21869503,144.07,144.03,2.4645]
[1750933289110,2.21869503,144.07,144.05,6.9385]
[1750933289516,2.21869503,144.07,144.03,2.4645]
[1750933290422,2.21869503,144.07,144.05,6.9385]
[1750933292520,2.21932069,144.07,144.05,6.9385]
[1750933293908,2.21932069,144.07,144.06,6.9384]
[1750933298123,6.9377,144.08,144.06,6.9384]
[1750933298421,2.21932069,144.07,144.06,6.9384]
[1750933301013,9.15722069,144.07,144.06,6.9384]
[1750933301528,9.15752069,144.07,144.03,4.68382069]
[1750933301729,2.21932069,144.06,144.01,2.21932069]
[1750933301924,2.21932069,144.03,144.0,144.97239701]
[1750933302120,2.21932069,144.03,144.01,6.9408]
[1750933302324,35.08,144.05,144.0,144.97239701]
[1750933302625,2.22048765,144.04,144.0,147.19288466]
[1750933303027,2.22048765,144.04,144.0,144.97239701]
[1750933303328,2.22048765,144.03,144.0,144.97239701]
[1750933303631,2.22048765,144.03,144.0,147.19288466]
[1750933303820,2.22048765,144.03,144.02,6.9401]
[1750933304130,2.22048765,144.03,143.94,35.08]
[1750933304326,2.22048765,143.98,143.97,6.9425]
[1750933304522,2.22048765,143.98,143.93,2.22048765]
[1750933304718,2.22048765,143.98,143.94,2.22048765]
[1750933304926,2.22048765,143.99,143.95,2.22048765]
[1750933305129,2.22048765,143.99,143.91,56.0197]
[1750933305428,2.22048765,143.99,143.98,6.942]
[1750933307624,2.22048765,143.99,143.94,2.22048765]
[1750933307831,2.22048765,143.96,143.92,2.22048765]
[1750933308019,2.22048765,143.94,143.91,7.0489]
[1750933308223,3.47392381,143.95,143.93,6.9442]
[1750933310336,3.47392381,143.95,143.94,6.9442]
[1750933313740,3.47392381,143.95,143.93,6.9445]
[1750933314438,3.47392381,143.95,143.94,6.9442]
[1750933318538,3.47392381,143.95,143.93,6.9445]
[1750933320647,3.47392381,143.95,143.94,6.9442]
[1750933324455,35.08,143.96,143.95,6.9437]
[1750933324840,3.47392381,143.98,143.91,2.407]
[1750933325035,41.9631,143.97,143.91,2.407]
[1750933325246,6.9431,143.97,143.91,2.407]
[1750933325446,35.02,143.96,143.91,2.407]
[1750933326446,45.43722381,143.96,143.91,2.407]
[1750933326747,38.49392381,143.96,143.94,6.944]
[1750933326950,38.49392381,143.96,143.91,2.407]
[1750933327248,38.49392381,143.96,143.94,6.9438]
[1750933327646,38.49392381,143.96,143.9,3.47392381]
[1750933327843,38.49392381,143.96,143.89,2.3358]
[1750933328148,38.49392381,143.96,143.93,6.9444]
[1750933328749,45.43752381,143.96,143.93,6.9444]
[1750933329550,6.9438,143.95,143.93,6.9444]
[1750933329845,6.9438,143.95,143.92,6.9449]
[1750933330046,38.49392381,143.96,143.89,2.3358]
[1750933330047,3.47392381,143.94,143.89,2.3358]
[1750933330253,10.41912381,143.92,143.88,2.4469]
[1750933330550,45.43912381,143.92,143.88,2.4469]
[1750933330745,45.43912381,143.92,143.89,6.9462]
[1750933331445,6.9457,143.91,143.89,6.9462]
[1750933331659,3.47392381,143.9,143.85,229.46220077]
[1750933331848,6.9469,143.89,143.85,229.46220077]
[1750933332348,35.02,143.88,143.86,6.9478]
[1750933332851,38.49392381,143.88,143.85,236.41050077]
[1750933333051,38.49392381,143.88,143.85,6.9483]
[1750933333652,45.44142381,143.88,143.85,6.9483]
[1750933334153,6.9488,143.85,143.8,2.4407]
[1750933334449,3.47392381,143.86,143.8,2.4407]
[1750933334652,3.47392381,143.86,143.83,6.9493]
[1750933334653,10.42222381,143.86,143.83,6.9493]
[1750933336448,6.9472,143.88,143.8,2.4407]
[1750933336640,35.04,143.87,143.8,5.91462381]
[1750933337043,3.47392381,143.86,143.8,2.4407]
[1750933337554,10.42222381,143.86,143.83,6.9492]
[1750933337745,3.47392381,143.86,143.83,6.9492]
[1750933338353,6.9488,143.85,143.83,6.9492]
[1750933338551,3.47392381,143.84,143.77,8.20962381]
[1750933339047,3.47392381,143.86,143.79,3.47392381]
[1750933339450,3.47392381,143.86,143.84,6.9488]
[1750933340052,10.42202381,143.86,143.83,6.9492]
[1750933340652,10.42202381,143.86,143.84,6.949]
[1750933340952,35.04,143.85,143.84,6.949]
[1750933341854,3.47392381,143.86,143.84,6.949]
[1750933342045,34.98,143.85,143.84,6.949]
[1750933342244,3.47392381,143.88,143.8,3.47392381]
[1750933342450,34.98,143.92,143.86,3.47392381]
[1750933342645,34.98,143.92,143.89,6.9464]
[1750933342846,34.98,143.92,143.86,3.47392381]
[1750933343150,38.45392381,143.92,143.86,3.47392381]
[1750933343450,38.45392381,143.92,143.9,6.9459]
[1750933344655,45.39912381,143.92,143.9,6.9459]
[1750933344850,45.39912381,143.92,143.89,6.9464]
[1750933345050,45.39912381,143.92,143.85,3.47392381]
[1750933347753,45.39912381,143.92,143.9,6.9461]
[1750933349257,45.39912381,143.92,143.89,6.9464]
[1750933354164,6.9459,143.91,143.88,6.9469]
[1750933354365,38.45392381,143.92,143.88,6.9469]
[1750933354763,3.47392381,143.9,143.86,6.9479]
[1750933355367,6.9471,143.89,143.86,6.9479]
[1750933355567,34.98,143.88,143.86,6.9479]
[1750933356271,41.9274,143.88,143.86,6.9479]
[1750933357167,6.9476,143.87,143.85,6.9484]
[1750933358174,41.9274,143.88,143.85,6.9484]
[1750933360878,41.9274,143.88,143.86,6.948]
[1750933363484,34.98,143.88,143.87,6.9476]
[1750933364976,3.47392381,143.92,143.86,3.47392381]
[1750933365280,34.98,143.92,143.86,3.47392381]
[1750933367183,34.98,143.92,143.9,6.9457]
[1750933367385,34.98,143.92,143.86,3.47392381]
[1750933367784,34.98,143.92,143.9,6.9458]
[1750933368084,34.98,143.92,143.86,3.47392381]
[1750933369287,34.98,143.92,143.9,6.9459]
[1750933371298,34.98,143.92,143.89,6.9465]
[1750933371485,38.45392381,143.92,143.89,6.9465]
[1750933372592,6.9459,143.91,143.89,6.9465]
[1750933376494,6.9461,143.9,143.88,6.9469]
[1750933380499,6.9459,143.91,143.89,6.9466]
[1750933381297,41.9254,143.92,143.85,3.47392381]
[1750933382499,41.9254,143.92,143.9,6.9459]
[1750933382899,34.98,143.92,143.9,6.9459]
[1750933384001,41.9254,143.92,143.9,6.9459]
[1750933384198,34.98,143.92,143.89,6.9464]
[1750933384803,34.98,143.92,143.87,6.9473]
[1750933384993,3.47392381,143.89,143.81,5.92692381]
[1750933385191,3.47392381,143.87,143.81,2.453]
[1750933385499,3.47392381,143.85,143.81,2.453]
[1750933385698,3.47392381,143.85,143.8,2.3435]
[1750933386091,6.949,143.84,143.81,6.9502]
[1750933388901,41.9082,143.86,143.83,6.9495]
[1750933389096,34.96,143.86,143.8,2.3435]
[1750933390102,34.96,143.86,143.84,6.9487]
[1750933390404,10.42162381,143.87,143.84,6.9487]
[1750933390606,45.38162381,143.87,143.84,6.9487]
[1750933392302,6.9481,143.86,143.84,6.9487]
[1750933395104,6.9481,143.86,143.83,6.9493]
[1750933395604,6.9487,143.85,143.83,6.9493]
[1750933395804,3.47392381,143.85,143.82,6.9498]
[1750933396107,10.42262381,143.85,143.82,6.9498]
[1750933396302,3.47392381,143.85,143.83,6.9493]
[1750933396601,38.43392381,143.87,143.8,2.3435]
[1750933396799,38.43392381,143.87,143.83,6.9493]
[1750933397304,6.9483,143.86,143.83,6.9493]
[1750933397606,6.9483,143.86,143.84,6.949]
[1750933398205,6.9483,143.86,143.83,6.9493]
[1750933398407,6.9487,143.85,143.83,6.9493]
[1750933399109,6.9487,143.85,143.82,6.9498]
[1750933400308,10.42262381,143.85,143.82,6.9498]
[1750933400703,6.9491,143.84,143.81,6.9502]
[1750933400903,6.9491,143.84,143.8,2.3435]
[1750933401408,6.9491,143.84,143.81,6.9502]
[1750933401612,6.9491,143.84,143.8,2.3435]
[1750933401908,6.9491,143.84,143.82,6.9499]
[1750933405211,3.47392381,143.85,143.8,2.3435]
[1750933406506,3.47392381,143.85,143.84,6.949]
[1750933406707,3.47392381,143.87,143.8,2.3435]
[1750933407011,38.41392381,143.87,143.8,5.81742381]
[1750933407212,3.47848333,143.82,143.64,20.875]
[1750933407412,3.47848333,143.79,143.72,3.47848333]
[1750933407713,10.42998333,143.79,143.73,2.4325]
[1750933407914,34.94,143.8,143.73,2.4325]
[1750933408117,34.94,143.8,143.75,6.953]
[1750933408404,34.94,143.8,143.74,38.42035289]
[1750933409708,6.9502,143.82,143.79,6.9514]
[1750933409907,41.8897,143.83,143.76,3.48035289]
[1750933410305,41.8897,143.83,143.8,6.9507]
[1750933414013,41.8897,143.83,143.81,6.9504]
[1750933414210,6.95,143.82,143.76,3.48035289]
[1750933414418,6.95,143.82,143.75,3.48035289]
[1750933414909,10.43035289,143.82,143.75,3.48035289]
[1750933415515,10.43035289,143.82,143.79,6.951]
[1750933415813,10.43035289,143.82,143.75,3.48035289]
[1750933416113,3.48035289,143.82,143.75,3.48035289]
[1750933416316,3.48035289,143.82,143.76,2.2627]
[1750933417020,3.48035289,143.82,143.81,6.9505]
[1750933418422,3.48035289,143.82,143.8,6.9507]
[1750933419323,3.48035289,143.82,143.81,6.9505]
[1750933420130,3.48035289,143.82,143.8,6.9507]
[1750933420326,10.43055289,143.82,143.76,2.2627]
[1750933420528,3.48035289,143.82,143.76,2.2627]
[1750933420729,3.48035289,143.82,143.79,6.9511]
[1750933420935,10.43035289,143.82,143.76,2.2627]
[1750933421229,6.95,143.82,143.76,2.2627]
[1750933421532,3.48035289,143.82,143.76,2.2627]
[1750933422530,3.48035289,143.82,143.81,6.9505]
[1750933426131,34.94,143.83,143.82,6.95]
[1750933432446,3.48035289,143.85,143.83,6.9492]
[1750933435650,10.42895289,143.85,143.83,6.9492]
[1750933443756,10.42895289,143.85,143.82,6.9496]
[1750933444654,3.48035289,143.85,143.81,6.9503]
[1750933444856,3.48035289,143.83,143.78,39.5041]
[1750933445045,10.43105289,143.81,143.76,2.2627]
[1750933445248,10.43105289,143.81,143.78,6.9516]
[1750933445454,3.48035289,143.81,143.76,2.2627]
[1750933445658,34.96,143.82,143.76,5.74305289]
[1750933445957,34.96,143.82,143.8,6.9507]
[1750933449359,34.96,143.82,143.76,5.74305289]
[1750933451560,34.96,143.82,143.81,6.9505]
[1750933452261,41.9087,143.85,143.82,6.9495]
[1750933452462,3.48035289,143.85,143.82,6.9495]
[1750933453655,6.949,143.84,143.82,6.9495]
[1750933454658,6.949,143.84,143.81,6.95]
[1750933454858,10.42925289,143.85,143.76,5.74305289]
[1750933455063,3.48035289,143.85,143.76,5.74305289]
[1750933455662,6.9491,143.84,143.82,6.9498]
[1750933458264,2.22668022,143.83,143.82,6.9498]
[1750933460166,6.9491,143.84,143.82,6.9498]
[1750933460370,2.22668022,143.83,143.82,6.9498]
[1750933466164,6.9486,143.85,143.83,6.9493]
[1750933466360,2.22668022,143.84,143.83,6.9493]
[1750933466566,34.96,143.86,143.81,2.22668022]
[1750933466765,2.22668022,143.85,143.84,6.9488]
[1750933477990,2.22668022,143.85,143.81,2.22668022]
[1750933478391,2.22668022,143.85,143.78,4.6467]
[1750933478590,2.22668022,143.86,143.82,2.22668022]
[1750933479685,2.22668022,143.86,143.85,6.9485]
[1750933480792,34.94,143.87,143.86,6.9481]
[1750933481094,2.22668022,143.88,143.86,6.9481]
[1750933482593,9.17398022,143.88,143.86,6.9481]
[1750933486499,9.17428022,143.87,143.85,6.9483]
[1750933486695,9.17428022,143.87,143.84,2.22668022]
[1750933486895,2.22668022,143.87,143.83,6.99298022]
[1750933487095,2.22668022,143.87,143.86,6.9481]
[1750933497807,2.22668022,143.87,143.85,6.9482]
[1750933498109,9.17428022,143.87,143.85,6.9482]
[1750933498308,2.22668022,143.87,143.85,6.9482]
[1750933499403,2.22668022,143.87,143.83,6.99298022]
[1750933499404,2.22668022,143.86,143.81,34.94]
[1750933499610,2.22668022,143.83,143.81,34.94]
[1750933500109,2.22668022,143.83,143.82,6.9496]
[1750933501511,2.22668022,143.84,143.83,6.9492]
[1750933504419,2.22668022,143.85,143.84,6.9489]
[1750933522232,6.9485,143.85,143.83,6.9492]
[1750933522433,2.22668022,143.84,143.83,6.9492]
[1750933524625,34.9,143.91,143.83,2.22668022]
[1750933524827,34.9,143.91,143.84,2.22474676]
[1750933525032,9.17164676,143.89,143.85,6.9483]
[1750933525231,2.22474676,143.87,143.85,6.9483]
[1750933525435,2.22474676,143.87,143.83,2.22474676]
[1750933526333,2.22474676,143.87,143.86,6.9481]
[1750933527033,2.2253249,143.87,143.86,6.9481]
[1750933528031,2.2253249,143.88,143.84,2.2253249]
[1750933529434,9.1725249,143.88,143.85,6.9482]
[1750933529837,9.1725249,143.88,143.84,2.2253249]
[1750933530136,2.2253249,143.86,143.82,7.2112]
[1750933530326,2.2253249,143.83,143.79,2.2253249]
[1750933531038,2.2253249,143.83,143.81,6.9502]
[1750933532028,2.2253249,143.83,143.82,6.95]
[1750933532230,2.2253249,143.83,143.79,2.2253249]
[1750933533240,2.2253249,143.83,143.81,6.9501]
[1750933534037,2.2253249,143.83,143.82,6.95]
[1750933534245,6.9487,143.85,143.8,2.2253249]
[1750933534444,2.2253249,143.84,143.8,2.2253249]
[1750933536246,2.2253249,143.84,143.82,6.9496]
[1750933537447,2.2253249,143.83,143.82,6.9496]
[1750933537651,2.2253249,143.83,143.79,2.2253249]
[1750933538346,6.9491,143.84,143.79,2.2253249]
[1750933538553,2.2253249,143.83,143.79,2.2253249]
[1750933538850,6.9491,143.84,143.79,2.2253249]
[1750933539051,2.2253249,143.83,143.79,2.2253249]
[1750933539552,2.2253249,143.83,143.82,6.95]
[1750933541355,2.2253249,143.84,143.82,6.95]
[1750933542758,9.1744249,143.84,143.82,6.95]
[1750933543859,2.2253249,143.83,143.82,6.95]
[1750933544661,6.9491,143.84,143.82,6.95]
[1750933544859,2.2253249,143.83,143.82,6.95]
[1750933545254,2.2253249,143.83,143.76,2.2253249]
[1750933545454,2.2253249,143.81,143.76,2.2253249]
[1750933546265,2.2253249,143.8,143.76,2.2253249]
[1750933547564,2.2253249,143.8,143.79,6.9514]
[1750933557374,2.2253249,143.8,143.78,6.9518]
[1750933557575,2.2253249,143.79,143.78,6.9518]
[1750933558788,2.2253249,143.79,143.77,6.9523]
[1750933558990,2.2253249,143.78,143.73,150.36681149]
[1750933559288,2.2253249,143.76,143.73,150.36681149]
[1750933559885,2.2253249,143.75,143.72,34.88]
[1750933560193,2.2253249,143.76,143.73,2.2253249]
[1750933560393,2.2253249,143.78,143.74,2.2253249]
[1750933561293,2.2253249,143.78,143.77,6.9521]
[1750933561492,2.2253249,143.78,143.73,9.2229249]
[1750933561691,2.2253249,143.77,143.73,9.2229249]
[1750933562292,10.43348848,143.79,143.76,6.9524]
[1750933562488,3.48178848,143.79,143.73,6.9976]
[1750933563494,3.48178848,143.79,143.78,6.9519]
[1750933567396,34.88,143.81,143.79,6.9513]
[1750933567590,3.48178848,143.8,143.79,6.9513]
[1750933569196,10.43278848,143.8,143.78,6.9517]
[1750933569601,3.48178848,143.8,143.73,10.47938848]
[1750933569891,3.48178848,143.8,143.73,6.9976]
[1750933570596,6.9516,143.79,143.77,6.9522]
[1750933570796,3.48178848,143.8,143.73,6.9976]
[1750933571698,10.43298848,143.8,143.77,6.952]
[1750933571892,10.43298848,143.8,143.73,6.9976]
[1750933572599,34.88,143.81,143.74,3.48178848]
[1750933572900,38.36178848,143.82,143.74,3.48178848]
[1750933573500,45.31208848,143.82,143.74,3.48178848]
[1750933573692,45.31208848,143.82,143.75,3.48178848]
[1750933574100,45.31208848,143.82,143.8,6.9507]
[1750933576196,34.88,143.82,143.75,3.48178848]
[1750933576501,34.88,143.82,143.77,3.48178848]
[1750933576902,34.88,143.82,143.81,6.9505]
[1750933577390,34.88,143.82,143.8,6.9507]
[1750933578198,34.88,143.82,143.81,6.9505]
[1750933583904,34.88,143.85,143.79,3.48178848]
[1750933584212,34.88,143.85,143.82,2.22563178]
[1750933584404,34.88,143.85,143.84,6.949]
[1750933586211,6.9479,143.87,143.85,6.9485]
[1750933586914,45.30467244,143.88,143.86,6.948]
[1750933587310,38.35737244,143.88,143.8,34.88]
[1750933587617,38.35737244,143.88,143.8,38.35737244]
[1750933588820,6.9478,143.87,143.84,6.9486]
[1750933589023,38.35737244,143.88,143.84,6.9486]
[1750933589319,6.9477,143.87,143.84,6.9486]
[1750933590518,6.9477,143.87,143.85,6.9484]
[1750933592321,6.9477,143.87,143.84,6.9488]
[1750933592521,6.9482,143.86,143.84,6.9488]
[1750933594223,6.9478,143.87,143.84,6.9488]
[1750933594721,6.9478,143.87,143.85,6.9484]
[1750933595221,1.20992977,143.92,143.82,3.47737244]
[1750933595521,3.47737244,143.9,143.82,3.47737244]
[1750933595717,3.47737244,143.9,143.83,4.7522]
[1750933595917,34.86,143.91,143.84,3.47737244]
[1750933596112,34.86,143.91,143.86,3.47737244]
[1750933596319,34.86,143.91,143.9,6.9461]
[1750933597225,34.86,143.94,143.88,3.47737244]
[1750933597626,34.86,143.94,143.89,4.6081]
[1750933598523,34.86,143.94,143.93,6.9447]
[1750933603127,41.8032,143.96,143.93,6.9447]
[1750933603322,6.9432,143.96,143.93,6.9447]
[1750933603526,41.8032,143.96,143.94,6.9442]
[1750933604228,41.8032,143.96,143.93,6.9445]
[1750933607331,6.9432,143.96,143.93,6.9445]
[1750933607730,41.8032,143.96,143.93,6.9445]
[1750933608126,6.9432,143.96,143.93,6.9445]
[1750933608329,41.8032,143.96,143.94,6.9441]
[1750933609031,600.38,143.97,143.9,5.76067244]
[1750933609234,635.22,143.97,143.9,5.76067244]
[1750933609532,635.22,143.97,143.95,6.9435]
[1750933609729,642.1629,143.97,143.9,5.76067244]
[1750933611029,3.47737244,143.96,143.9,2.2833]
[1750933611229,3.47737244,143.96,143.91,6.9453]
[1750933611429,3.47737244,143.94,143.91,6.9453]
[1750933611626,10.42177244,143.94,143.91,6.9453]
[1750933613328,6.9448,143.93,143.9,6.9459]
[1750933613832,34.84,143.93,143.9,6.9459]
[1750933614537,6.9452,143.92,143.9,6.9459]
[1750933616434,45.26227244,143.93,143.9,6.9459]
[1750933617639,6.9452,143.92,143.9,6.9459]
[1750933619237,3.47737244,143.91,143.84,11.04246064]
[1750933619436,34.84,143.93,143.84,4.6051]
[1750933619437,3.47737244,143.89,143.84,4.6051]
[1750933619832,45.26407244,143.89,143.87,6.9473]
[1750933620339,6.9472,143.88,143.86,6.9478]
[1750933620639,6.9472,143.88,143.82,34.84]
[1750933620838,6.9472,143.88,143.85,6.9481]
[1750933621240,38.31737244,143.89,143.82,38.31737244]
[1750933621241,45.26417244,143.89,143.82,38.31737244]
[1750933621539,38.31737244,143.89,143.82,38.31737244]
[1750933622039,38.31737244,143.89,143.86,6.9478]
[1750933622040,45.26437244,143.89,143.86,6.9478]
[1750933623239,45.26437244,143.89,143.87,6.9475]
[1750933626235,41.787,143.89,143.87,6.9475]
[1750933627036,34.84,143.89,143.87,6.9475]
[1750933627343,34.84,143.89,143.88,6.9471]
[1750933628139,34.84,143.91,143.86,3.47737244]
[1750933628644,34.84,143.91,143.86,14.66743308]
[1750933629544,34.84,143.91,143.9,6.9461]
[1750933638546,34.84,143.91,143.89,6.9464]
[1750933638850,34.84,143.91,143.88,6.43736064]
[1750933639352,34.84,143.91,143.89,6.9464]
[1750933639658,34.84,143.91,143.88,6.43736064]
[1750933639849,34.84,143.94,143.89,12.06051997]
[1750933640049,34.84,143.94,143.91,6.48736368]
[1750933640851,34.84,143.94,143.92,6.9449]
[1750933641249,34.84,143.94,143.92,6.9452]
[1750933642846,41.7842,143.94,143.92,6.9452]
[1750933644052,34.84,143.94,143.92,6.9452]
[1750933646554,34.84,143.94,143.93,6.9447]
[1750933646751,39.87407614,143.94,143.93,6.9447]
[1750933647656,34.84,143.94,143.93,6.9447]
[1750933647853,39.87418278,143.94,143.93,6.9447]
[1750933648246,34.84,143.94,143.93,6.9447]
[1750933649257,7.72759531,143.96,143.94,6.944]
[1750933649457,3.47737244,143.96,143.94,6.944]
[1750933650056,5.04556707,143.95,143.94,6.944]
[1750933651157,10.42057244,143.96,143.94,6.944]
[1750933651859,6.9432,143.96,143.94,6.944]
[1750933652260,5.04502757,143.95,143.94,6.944]
[1750933652453,6.9432,143.96,143.94,6.944]
[1750933652653,5.05672144,143.95,143.94,6.944]
[1750933653163,6.9432,143.96,143.94,6.944]
[1750933654160,642.1431,143.97,143.95,6.9437]
[1750933654356,5.05641126,143.96,143.95,6.9437]
[1750933654556,8.5337837,143.96,143.92,6.48736368]
[1750933654756,6.9438,143.95,143.93,6.9444]
[1750933656461,10.42087244,143.96,143.93,6.9444]
[1750933656760,5.0577811,143.95,143.93,6.9444]
[1750933656960,10.42087244,143.96,143.93,6.9444]
[1750933657151,5.0577811,143.95,143.93,6.9444]
[1750933657352,10.42087244,143.96,143.93,6.9444]
[1750933657562,5.05766525,143.95,143.94,6.9442]
[1750933657861,5.05766525,143.95,143.92,6.48736368]
[1750933658060,10.42087244,143.96,143.93,6.9443]
[1750933658263,5.05755133,143.95,143.93,6.9443]
[1750933658456,10.42087244,143.96,143.93,6.9443]
[1750933658657,5.05755133,143.95,143.93,6.9443]
[1750933658864,10.42087244,143.96,143.93,6.9443]
[1750933659061,12.00135133,143.95,143.93,6.9443]
[1750933659261,6.9438,143.95,143.93,6.9443]
[1750933659680,7.73882005,143.96,143.91,6.48736368]
[1750933659858,5.05761527,143.95,143.91,6.48736368]
[1750933660162,12.00201527,143.94,143.92,6.9448]
[1750933660362,6.9444,143.94,143.92,6.9448]
[1750933662167,6.9444,143.94,143.92,13.43216368]
[1750933663563,6.9444,143.94,143.92,6.9448]
[1750933664874,6.9435,143.96,143.91,6.48736368]
[1750933665169,5.04719389,143.95,143.92,6.48736368]
[1750933665370,11.99143022,143.94,143.92,6.9451]
[1750933665671,6.9444,143.94,143.92,6.9451]
[1750933666469,6.9447,143.93,143.91,13.43276368]
[1750933666865,38.29424475,143.93,143.9,6.48736368]
[1750933667270,3.47424475,143.91,143.89,6.48736368]
[1750933667467,39.0716742,143.93,143.89,6.48736368]
[1750933667668,3.47620618,143.91,143.89,6.48736368]
[1750933668269,2.22447922,143.9,143.89,13.43366368]
[1750933669371,6.9459,143.91,143.89,13.43366368]
[1750933669571,2.22447922,143.9,143.89,13.43366368]
[1750933670360,10.42109787,143.92,143.89,13.43366368]
[1750933671873,10.42109787,143.92,143.89,6.9463]
[1750933672061,10.42109787,143.92,143.9,6.946]
[1750933672062,6.9454,143.92,143.9,6.946]
[1750933672265,10.42109787,143.92,143.88,6.48736368]
[1750933672476,3.47569787,143.92,143.88,6.48736368]
[1750933672672,3.47569787,143.92,143.88,13.43416368]
[1750933672869,10.42219787,143.9,143.88,13.43416368]
[1750933673070,34.82,143.89,143.87,6.48736368]
[1750933673375,3.47569787,143.88,143.86,6.48736368]
[1750933673668,3.47569787,143.88,143.87,6.9476]
[1750933673873,3.47569787,143.88,143.86,6.48736368]
[1750933674373,3.47569787,143.88,143.86,13.43506368]
[1750933675180,41.7668,143.89,143.87,6.9474]
[1750933675471,45.24249787,143.89,143.87,6.9474]
[1750933681177,38.29569787,143.89,143.88,6.9471]
[1750933681380,34.82,143.89,143.88,6.9471]
[1750933698183,37.0444593,143.89,143.88,6.9471]
[1750933702388,37.0444593,143.89,143.87,6.9473]
[1750933702592,2.2244593,143.88,143.87,6.9473]
[1750933703186,37.0444593,143.89,143.88,6.9471]
[1750933708292,37.0444593,143.89,143.87,13.43466368]
[1750933708488,43.9911593,143.89,143.87,13.43466368]
[1750933711192,37.0444593,143.89,143.88,6.9471]
[1750933712094,37.0444593,143.89,143.88,13.43446368]
[1750933715494,34.82,143.89,143.88,13.43446368]
[1750933715699,37.0444593,143.89,143.88,13.43446368]
[1750933715899,37.0444593,143.89,143.88,6.9471]
[1750933717101,34.82,143.89,143.88,6.9471]
[1750933717395,42.07629127,143.89,143.87,6.50216775]